bitfinex/quotes_SOLUSD_20251007
["timestamp","ask_amount","ask_price","bid_price","bid_amount"]
[1759823407523,2.70368503,230.75,230.72,0.66]
[1759823408120,2.70368503,230.75,230.7,30.34]
[1759823408322,3.41368503,230.75,230.71,0.66]
[1759823408647,2.70368503,230.75,230.72,0.66]
[1759823408947,7.03745578,230.75,230.7,30.34]
[1759823409118,7.74745578,230.75,230.71,0.66]
[1759823409314,2.70368503,230.74,230.71,0.66]
[1759823410139,2.70368503,230.74,230.7,30.34]
[1759823410329,3.41368503,230.74,230.7,31.0]
[1759823410828,7.03771699,230.74,230.71,0.66]
[1759823412241,2.70368503,230.74,230.71,0.66]
[1759823412421,7.03750478,230.75,230.71,0.66]
[1759823412611,7.74750478,230.75,230.71,0.66]
[1759823416245,0.71,230.74,230.71,0.66]
[1759823418532,7.03750478,230.75,230.71,0.66]
[1759823418727,2.70368503,230.75,230.71,4.33436836]
[1759823419040,4.33340084,230.77,230.72,0.66]
[1759823419234,7.74708587,230.77,230.73,0.66]
[1759823419433,0.71,230.76,230.72,0.66]
[1759823420149,2.70368503,230.78,230.73,0.66]
[1759823420350,3.41368503,230.78,230.74,30.98]
[1759823420842,6.59439909,230.79,230.74,30.98]
[1759823420843,4.96496948,230.79,230.74,34.65386886]
[1759823421044,138.78984312,230.93,230.74,34.65386886]
[1759823421045,2.9128405,230.83,230.75,0.66]
[1759823421249,6.77123581,230.85,230.75,0.66]
[1759823421542,1.72930677,230.84,230.75,0.66]
[1759823421747,0.71,230.83,230.75,0.66]
[1759823422431,0.71,230.83,230.76,4.33350667]
[1759823422746,2.9128405,230.85,230.77,0.66]
[1759823422747,4.33183507,230.85,230.77,0.66]
[1759823422951,2.43930677,230.84,230.78,30.32]
[1759823423150,2.43930677,230.84,230.78,30.98]
[1759823423849,2.43930677,230.84,230.79,0.66]
[1759823424157,0.71,230.84,230.8,0.66]
[1759823424525,23.06071786,230.87,230.78,34.65296157]
[1759823424747,5.04162955,230.86,230.81,0.66]
[1759823424946,5.04162955,230.86,230.82,30.98]
[1759823426065,0.71,230.85,230.82,30.32]
[1759823426842,0.71,230.88,230.83,0.66]
[1759823427050,2.43930677,230.88,230.84,0.66]
[1759823427231,2.43930677,230.88,230.82,34.65233564]
[1759823427549,0.71,230.87,230.82,30.32]
[1759823427849,0.71,230.87,230.83,0.66]
[1759823428258,1.72930677,230.85,230.82,30.32]
[1759823428439,2.43930677,230.85,230.82,30.32]
[1759823428756,4.33127227,230.88,230.82,30.32]
[1759823428757,1.72930677,230.87,230.82,30.32]
[1759823428943,2.43930677,230.87,230.83,0.66]
[1759823429456,0.71,230.86,230.82,30.32]
[1759823429947,0.71,230.85,230.82,30.32]
[1759823430854,6.77085054,230.87,230.82,30.98]
[1759823431034,0.71,230.86,230.82,30.98]
[1759823431534,0.71,230.86,230.82,30.32]
[1759823432949,0.71,230.86,230.82,31.04]
[1759823433152,0.71,230.86,230.82,35.37234337]
[1759823433350,1.72930677,230.88,230.83,0.72]
[1759823433662,1.72930677,230.88,230.84,0.72]
[1759823434263,6.74053455,230.89,230.84,0.72]
[1759823434838,6.74053455,230.89,230.85,0.72]
[1759823435261,6.74053455,230.89,230.86,30.32]
[1759823435744,5.01122778,230.89,230.86,30.32]
[1759823437162,0.68,230.88,230.86,30.32]
[1759823439163,5.01127397,230.88,230.86,30.32]
[1759823440039,4.33127397,230.88,230.86,30.32]
[1759823440665,5.02127397,230.88,230.86,30.32]
[1759823442866,4.33127397,230.88,230.86,30.32]
[1759823443572,4.33106674,230.89,230.86,30.32]
[1759823444272,0.69,230.88,230.86,30.32]
[1759823445273,0.69,230.87,230.86,30.32]
[1759823445466,5.02144193,230.87,230.86,30.32]
[1759823445773,4.33144193,230.87,230.86,30.32]
[1759823445974,5.02144193,230.87,230.86,30.32]
[1759823448866,6.75055801,230.89,230.86,30.32]
[1759823449054,0.69,230.88,230.86,30.32]
[1759823450682,5.02134991,230.88,230.86,30.32]
[1759823453078,9.01067564,230.9,230.86,30.32]
[1759823453287,0.69,230.89,230.86,30.32]
[1759823454285,5.02119323,230.89,230.86,30.32]
[1759823455170,3.98963729,230.9,230.86,31.03]
[1759823455484,0.69,230.89,230.86,30.32]
[1759823456271,5.02124258,230.89,230.86,30.32]
[1759823457380,0.69,230.89,230.86,30.32]
[1759823458066,0.69,230.88,230.86,30.32]
[1759823459187,0.69,230.87,230.86,30.32]
[1759823459684,5.02144193,230.87,230.86,30.32]
[1759823460200,4.33144193,230.87,230.86,30.32]
[1759823460371,6.0607487,230.87,230.86,30.32]
[1759823460573,4.33144193,230.87,230.86,30.32]
[1759823460772,5.02144193,230.87,230.86,30.32]
[1759823460967,6.7507487,230.87,230.86,30.32]
[1759823462069,6.7507487,230.87,230.77,15.20979054]
[1759823462070,17.57935354,230.87,230.83,30.28]
[1759823462265,2.44930677,230.86,230.83,30.28]
[1759823462472,2.44930677,230.85,230.83,30.28]
[1759823462791,0.72,230.84,230.83,30.28]
[1759823462987,15.16004677,230.87,230.83,30.28]
[1759823463187,1e-08,230.92,230.84,0.72]
[1759823463188,4.33087916,230.9,230.84,0.72]
[1759823463567,6.06018593,230.9,230.84,0.72]
[1759823464169,6.78018593,230.9,230.84,0.72]
[1759823464387,1.72930677,230.89,230.83,30.28]
[1759823464566,1.72930677,230.88,230.84,30.28]
[1759823464888,0.72,230.87,230.84,30.28]
[1759823465095,1.72930677,230.88,230.84,31.0]
[1759823465479,1.72930677,230.88,230.85,0.72]
[1759823466185,1.72930677,230.89,230.84,30.28]
[1759823466498,4.33144193,230.87,230.84,31.0]
[1759823469671,4.33125433,230.88,230.84,30.28]
[1759823469876,4.33125433,230.88,230.85,0.72]
[1759823470073,6.06033541,230.9,230.86,0.72]
[1759823470293,4.33102864,230.9,230.87,0.72]
[1759823470491,6.06033541,230.9,230.84,30.28]
[1759823470793,6.06033541,230.9,230.85,0.72]
[1759823470985,6.78033541,230.9,230.86,0.72]
[1759823471496,6.06033541,230.9,230.87,0.72]
[1759823471876,6.78033541,230.9,230.85,0.72]
[1759823472076,6.78033541,230.9,230.86,0.72]
[1759823472477,6.06033541,230.9,230.87,0.72]
[1759823472809,4.33102864,230.9,230.87,0.72]
[1759823473179,6.06033541,230.9,230.87,0.72]
[1759823474199,6.06033541,230.9,230.85,0.72]
[1759823474396,0.72,230.89,230.85,0.72]
[1759823474590,6.06033541,230.9,230.86,0.72]
[1759823474786,6.78033541,230.9,230.86,0.72]
[1759823476896,0.72,230.89,230.84,31.0]
[1759823477089,0.72,230.89,230.85,0.72]
[1759823478408,4.33125433,230.88,230.85,0.72]
[1759823479807,4.33106674,230.89,230.85,0.72]
[1759823480195,4.33106674,230.89,230.86,0.72]
[1759823481185,0.72,230.88,230.84,31.0]
[1759823481608,0.72,230.88,230.84,30.28]
[1759823481812,5.05140538,230.88,230.85,0.72]
[1759823481983,4.33140538,230.88,230.85,0.72]
[1759823482306,4.33108536,230.89,230.86,0.72]
[1759823482800,5.05108536,230.89,230.84,30.28]
[1759823483003,4.33108536,230.89,230.85,0.72]
[1759823483301,4.33108536,230.89,230.86,0.72]
[1759823484611,1e-08,230.92,230.87,0.72]
[1759823484903,1e-08,230.92,230.88,30.28]
[1759823485283,1e-08,230.92,230.89,0.72]
[1759823486094,1e-08,230.92,230.89,5.0509599]
[1759823486296,1e-08,230.92,230.9,4.43030641]
[1759823486503,1e-08,230.92,230.9,5.15030641]
[1759823486706,1e-08,230.92,230.91,0.72]
[1759823487010,1e-08,230.92,230.91,11.59647521]
[1759823487988,1e-08,230.92,230.91,15.92716682]
[1759823490223,1e-08,230.92,230.91,46.18716682]
[1759823491915,1e-08,230.92,230.91,47.92015644]
[1759823502023,1e-08,230.92,230.91,47.20015644]
[1759823503023,0.67000001,230.92,230.91,42.86946483]
[1759823503322,1e-08,230.92,230.91,42.86946483]
[1759823503510,1e-08,230.92,230.91,47.20015644]
[1759823504529,1e-08,230.92,230.91,47.88015644]
[1759823505205,1e-08,230.92,230.91,42.86946483]
[1759823505907,1e-08,230.92,230.91,47.20015644]
[1759823506732,1e-08,230.92,230.91,47.88015644]
[1759823528146,1e-08,230.92,230.91,47.20015644]
[1759823532954,0.69000001,230.92,230.91,6.06368123]
[1759823533263,0.69000001,230.92,230.91,31.97298962]
[1759823534662,0.69000001,230.92,230.91,1.73298962]
[1759823534833,7.72107376,230.92,230.83,9.19127077]
[1759823535158,3.39056968,230.91,230.85,1.73374076]
[1759823535359,0.69,230.9,230.86,30.22]
[1759823535544,0.69,230.89,230.87,30.22]
[1759823535727,0.69,230.88,230.87,30.22]
[1759823536735,5.02125433,230.88,230.87,30.22]
[1759823538256,0.69,230.88,230.87,30.22]
[1759823542380,5.02125433,230.88,230.87,30.22]
[1759823542553,18.54995983,230.88,230.79,10.87647521]
[1759823542751,2.70056968,230.85,230.76,4.33350667]
[1759823542981,3.39056968,230.84,230.77,41.06626018]
[1759823543269,0.69,230.83,230.77,30.24]
[1759823543472,3.39056968,230.82,230.77,30.24]
[1759823543652,5.02256791,230.81,230.77,30.24]
[1759823543855,2.70056968,230.82,230.77,30.24]
[1759823543856,0.69,230.8,230.77,30.24]
[1759823544055,0.69,230.79,230.77,30.24]
[1759823544256,0.69,230.78,230.77,30.24]
[1759823545456,0.69,230.83,230.77,35.26331888]
[1759823545768,0.69,230.82,230.77,46.09338752]
[1759823545953,0.69,230.82,230.77,34.57331888]
[1759823546152,0.69,230.82,230.78,0.69]
[1759823546552,0.69,230.82,230.78,5.0231052]
[1759823547471,0.69,230.82,230.78,9.35512946]
[1759823548175,0.69,230.82,230.77,30.24]
[1759823548176,0.69,230.81,230.77,34.57331792]
[1759823548374,0.69,230.81,230.77,38.90513814]
[1759823548574,0.69,230.81,230.77,39.59513814]
[1759823549363,4.33220018,230.83,230.77,38.90513814]
[1759823549564,0.69,230.8,230.77,34.57182022]
[1759823549765,0.69,230.79,230.77,34.57182022]
[1759823550390,0.69,230.81,230.77,34.57182022]
[1759823550676,0.69,230.8,230.77,34.57182022]
[1759823550886,0.69,230.79,230.77,34.57182022]
[1759823552483,4.33220018,230.83,230.77,34.57182022]
[1759823552684,0.66,230.82,230.77,34.57182022]
[1759823552983,0.66,230.81,230.77,34.57182022]
[1759823553163,0.66,230.81,230.77,38.90512886]
[1759823553366,0.66,230.81,230.77,39.61512886]
[1759823554370,4.33220018,230.83,230.77,39.61512886]
[1759823554573,0.66,230.81,230.77,39.61512886]
[1759823556691,4.99220018,230.83,230.78,0.71]
[1759823557062,4.99220018,230.83,230.79,0.71]
[1759823557379,4.99220018,230.83,230.8,30.24]
[1759823557579,4.33220018,230.83,230.8,30.24]
[1759823557779,0.68,230.82,230.8,30.24]
[1759823559384,0.68,230.83,230.8,30.24]
[1759823561769,4.33203111,230.84,230.8,30.24]
[1759823561770,0.68,230.82,230.8,30.24]
[1759823562991,0.68,230.81,230.8,30.24]
[1759823563569,4.33231683,230.83,230.8,30.24]
[1759823563790,0.68,230.82,230.8,30.24]
[1759823564295,0.68,230.81,230.8,30.24]
[1759823564488,0.68,230.82,230.8,30.24]
[1759823564688,0.68,230.81,230.8,30.24]
[1759823564881,0.68,230.83,230.8,30.24]
[1759823565082,0.68,230.82,230.8,30.24]
[1759823565290,1.72952876,230.84,230.8,30.24]
[1759823565589,0.68,230.83,230.8,30.24]
[1759823565782,0.68,230.82,230.8,30.24]
[1759823566393,5.01219252,230.83,230.8,30.24]
[1759823567192,11.50743124,230.9,230.81,0.67]
[1759823567497,4.33106674,230.89,230.81,0.67]
[1759823567691,0.68,230.88,230.81,0.67]
[1759823567891,0.68,230.88,230.82,4.3323802]
[1759823568094,5.01133565,230.88,230.83,30.91]
[1759823568294,5.01133565,230.88,230.84,0.67]
[1759823569393,0.68,230.87,230.83,30.24]
[1759823569594,0.68,230.87,230.83,30.91]
[1759823573188,0.68,230.89,230.84,0.67]
[1759823573581,0.68,230.88,230.84,0.67]
[1759823575499,4.3312579,230.88,230.84,0.67]
[1759823575698,4.33107935,230.89,230.85,0.67]
[1759823575885,5.01107935,230.89,230.86,30.22]
[1759823577193,6.74060811,230.89,230.86,30.22]
[1759823578898,6.06060811,230.89,230.86,30.22]
[1759823579402,0.68,230.88,230.86,30.22]
[1759823579600,6.06060811,230.89,230.86,30.22]
[1759823579779,6.74060811,230.89,230.86,30.22]
[1759823580492,5.01069161,230.91,230.86,30.89]
[1759823580693,5.01069161,230.91,230.87,0.67]
[1759823581378,4.33069161,230.91,230.87,0.67]
[1759823581581,4.33069161,230.91,230.87,0.69]
[1759823581811,5.01069161,230.91,230.87,0.69]
[1759823584804,4.33069161,230.91,230.88,0.69]
[1759823585007,5.01069161,230.91,230.86,30.91]
[1759823585215,5.01095888,230.9,230.86,30.91]
[1759823585436,0.68,230.89,230.86,30.91]
[1759823585712,4.33095888,230.9,230.86,30.91]
[1759823585896,5.01095888,230.9,230.86,30.91]
[1759823586093,1e-08,230.92,230.86,35.24162063]
[1759823586294,1e-08,230.92,230.87,0.69]
[1759823586509,1e-08,230.92,230.87,3.05006247]
[1759823586811,1e-08,230.92,230.88,10.87647521]
[1759823586981,1e-08,230.92,230.88,11.56647521]
[1759823587182,1e-08,230.92,230.9,4.33087916]
[1759823587411,1e-08,230.92,230.91,30.22]
[1759823587583,1e-08,230.92,230.91,32.64336511]
[1759823587918,1e-08,230.92,230.91,30.91]
[1759823589203,1e-08,230.92,230.91,35.24069161]
[1759823590616,1e-08,230.92,230.91,36.97405672]
[1759823591392,1e-08,230.92,230.91,35.24069161]
[1759823591594,1e-08,230.92,230.91,36.97405672]
[1759823591825,1e-08,230.92,230.91,35.24069161]
[1759823592820,1e-08,230.92,230.91,36.97405672]
[1759823593019,1e-08,230.92,230.91,30.91]
[1759823593719,1e-08,230.92,230.91,35.24069161]
[1759823593895,1e-08,230.92,230.91,36.97405672]
[1759823595205,1e-08,230.92,230.91,32.64336511]
[1759823595513,1e-08,230.92,230.91,36.97405672]
[1759823601019,1e-08,230.92,230.91,47.85053193]
[1759823605120,1e-08,230.92,230.91,60.65943669]
[1759823606036,0.1,230.93,230.92,10.14836196]
[1759823606219,0.1,230.93,230.92,10.83836196]
[1759823606638,0.1,230.93,230.92,12.57135158]
[1759823607138,0.1,230.93,230.92,16.01441759]
[1759823608228,0.1,230.93,230.92,12.57135158]
[1759823610039,0.1,230.93,230.92,23.44782679]
[1759823615120,1e-08,230.93,230.92,23.44782679]
[1759823621242,1e-08,230.93,230.92,53.62782679]
[1759823623965,1e-08,230.93,230.92,52.93782679]
[1759823624439,1e-08,230.93,230.92,53.63782679]
[1759823628131,1e-08,230.93,230.92,52.93782679]
[1759823628534,1e-08,230.93,230.92,53.63782679]
[1759823629953,0.67000001,230.93,230.92,22.75782679]
[1759823630250,0.67000001,230.93,230.92,52.91782679]
[1759823630460,1e-08,230.93,230.92,52.91782679]
[1759823632564,0.67000001,230.93,230.92,52.91782679]
[1759823632768,0.67000001,230.93,230.92,22.75782679]
[1759823633250,0.67000001,230.93,230.92,52.91782679]
[1759823635356,1e-08,230.93,230.92,52.91782679]
[1759823636584,0.67000001,230.93,230.92,52.91782679]
[1759823639172,1e-08,230.93,230.92,53.61782679]
[1759823644376,1e-08,230.93,230.92,58.47690715]
[1759823644565,1e-08,230.93,230.92,53.61782679]
[1759823646885,1e-08,230.93,230.92,52.91782679]
[1759823649293,1e-08,230.93,230.92,53.58782679]
[1759823655882,1e-08,230.93,230.92,52.91782679]
[1759823656093,1e-08,230.93,230.92,53.58782679]
[1759823656307,1e-08,230.93,230.92,52.91782679]
[1759823656581,0.67000001,230.93,230.92,52.91782679]
[1759823658007,0.67000001,230.93,230.92,48.41018797]
[1759823658207,0.67000001,230.93,230.92,73.71782679]
[1759823658513,0.67000001,230.93,230.92,78.57018797]
[1759823658811,0.67000001,230.93,230.92,43.55782679]
[1759823659007,0.67000001,230.93,230.92,73.69782679]
[1759823667408,0.67000001,230.93,230.92,78.55018797]
[1759823667921,1e-08,230.93,230.92,74.36782679]
[1759823668119,1e-08,230.93,230.92,78.54917177]
[1759823669404,0.67000001,230.93,230.92,78.54917177]
[1759823673803,1e-08,230.93,230.92,78.54917177]
[1759823676119,0.65000001,230.93,230.92,78.54917177]
[1759823676934,1e-08,230.93,230.92,78.54917177]
[1759823677119,1e-08,230.93,230.92,79.23917177]
[1759823677516,1e-08,230.93,230.92,74.38782679]
[1759823677915,1e-08,230.93,230.92,73.69782679]
[1759823679329,1e-08,230.93,230.92,78.55011768]
[1759823679726,1e-08,230.93,230.92,73.69782679]
[1759823680137,1e-08,230.93,230.92,78.55011768]
[1759823681633,0.68000001,230.93,230.92,78.55011768]
[1759823681829,0.68000001,230.93,230.92,73.69782679]
[1759823683111,1e-08,230.93,230.92,73.69782679]
[1759823686529,1e-08,230.93,230.92,78.55011768]
[1759823687033,1e-08,230.93,230.92,78.54938864]
[1759823689020,1e-08,230.93,230.92,74.38782679]
[1759823689843,1e-08,230.93,230.92,73.69782679]
[1759823690219,1e-08,230.93,230.92,74.38782679]
[1759823695844,0.1,230.95,230.94,10.87647521]
[1759823696147,0.1,230.95,230.94,45.84539835]
[1759823696323,0.1,230.95,230.94,46.53539835]
[1759823696523,0.1,230.95,230.94,48.26801264]
[1759823696832,0.1,230.97,230.96,31.67647521]
[1759823697152,0.1,230.97,230.96,61.79647521]
[1759823697446,0.1,230.97,230.96,64.21886439]
[1759823697747,0.1,230.99,230.97,10.87647521]
[1759823697934,0.1,230.99,230.98,66.12585437]
[1759823698445,0.1,230.99,230.98,37.73824355]
[1759823698648,0.1,230.99,230.98,67.85824355]
[1759823700226,0.78,230.99,230.98,67.85824355]
[1759823700420,0.1,230.99,230.98,67.85824355]
[1759823702329,0.77,230.99,230.98,37.73824355]
[1759823702524,0.77,230.99,230.98,67.85824355]
[1759823704153,0.1,230.99,230.98,67.85824355]
[1759823708062,0.77,230.99,230.98,67.85824355]
[1759823708854,0.1,230.99,230.98,67.85824355]
[1759823709172,0.1,230.99,230.98,47.05824355]
[1759823710561,0.1,230.99,230.98,47.73824355]
[1759823710768,0.1,230.99,230.98,17.61824355]
[1759823711059,0.1,230.99,230.98,47.73824355]
[1759823711954,0.1,230.99,230.98,47.05824355]
[1759823712429,0.1,230.99,230.98,47.73824355]
[1759823712937,0.1,230.99,230.98,47.05824355]
[1759823714257,0.77,230.99,230.98,47.05824355]
[1759823715640,0.1,230.99,230.98,47.05824355]
[1759823716441,0.1,230.99,230.98,16.93824355]
[1759823716737,0.1,230.99,230.98,47.03824355]
[1759823719055,0.77,230.99,230.98,47.03824355]
[1759823719563,0.1,230.99,230.98,47.03824355]
[1759823730963,0.77,230.99,230.98,47.03824355]
[1759823731156,0.77,230.99,230.98,51.88345741]
[1759823732581,0.1,230.99,230.98,51.88345741]
[1759823736082,0.1,230.99,230.98,47.03824355]
[1759823737183,0.1,230.99,230.98,16.93824355]
[1759823737484,0.1,230.99,230.98,47.03824355]
[1759823737779,0.79,231.01,231.0,31.67647521]
[1759823737980,0.79,231.01,231.0,61.77647521]
[1759823738488,0.1,231.01,231.0,70.08177153]
[1759823738790,0.1,231.01,231.0,64.57246994]
[1759823738791,0.76,231.01,231.0,64.57246994]
[1759823739078,0.1,231.01,231.0,64.57246994]
[1759823739480,0.1,231.01,231.0,68.90147426]
[1759823740277,0.1,231.01,231.0,73.75077585]
[1759823740862,0.76,231.01,231.0,73.75077585]
[1759823741760,0.76,231.01,231.0,38.80147426]
[1759823741969,0.76,231.01,231.0,27.92499905]
[1759823742152,0.76,231.01,231.0,58.02499905]
[1759823743089,0.76,231.01,231.0,53.69599473]
[1759823743676,0.76,231.01,231.0,32.89599473]
[1759823744877,0.76,231.01,231.0,37.22499905]
[1759823745264,0.76,231.01,231.0,7.12499905]
[1759823745468,0.76,231.01,231.0,37.22499905]
[1759823754989,0.1,231.01,231.0,37.22499905]
[1759823755200,0.1,231.01,231.0,7.12499905]
[1759823755386,0.1,231.01,231.0,37.20499905]
[1759823756611,0.1,231.01,231.0,48.74147426]
[1759823756800,0.1,231.01,231.0,48.08147426]
[1759823760716,0.76,231.01,231.0,48.08147426]
[1759823761302,0.1,231.01,231.0,48.08147426]
[1759823762891,0.76,231.01,231.0,37.20499905]
[1759823763907,0.76,231.01,231.0,7.12499905]
[1759823764091,0.76,231.01,231.0,37.20499905]
[1759823768418,0.76,231.01,231.0,32.87599473]
[1759823770722,0.76,231.01,231.0,30.08]
[1759823770723,3.45599473,231.01,231.0,30.08]
[1759823771124,3.45599473,231.01,230.97,10.81997932]
[1759823771426,0.66,231.0,230.98,30.08]
[1759823771604,0.66,230.99,230.98,30.08]
[1759823772502,0.66,230.99,230.98,34.40864765]
[1759823774418,0.1,231.01,230.98,4.32864765]
[1759823774616,0.1,231.01,230.98,35.08864765]
[1759823774933,0.76,231.01,230.99,30.08]
[1759823776021,0.76,231.01,230.99,34.40917028]
[1759823776419,0.76,231.01,230.99,4.32917028]
[1759823776420,0.1,231.01,230.99,4.32917028]
[1759823776623,0.1,231.01,231.0,30.76]
[1759823776842,0.1,231.01,231.0,43.75517012]
[1759823777026,0.1,231.01,231.0,43.07517012]
[1759823778422,0.1,231.01,231.0,47.40417444]
[1759823778826,0.1,231.01,231.0,17.32417444]
[1759823779029,0.1,231.01,231.0,47.40417444]
[1759823780740,0.76,231.01,231.0,47.40417444]
[1759823781536,0.1,231.01,231.0,47.40417444]
[1759823782844,0.1,231.01,231.0,48.08417444]
[1759823783035,0.1,231.01,231.0,18.00417444]
[1759823783235,0.1,231.01,231.0,47.40417444]
[1759823784211,0.1,231.01,231.0,17.32417444]
[1759823784406,0.1,231.01,231.0,47.40417444]
[1759823786928,0.1,231.01,231.0,17.32417444]
[1759823787150,0.1,231.01,231.0,47.40417444]
[1759823792723,0.81,231.01,231.0,47.38417444]
[1759823793525,0.81,231.01,231.0,43.05517012]
[1759823794154,0.81,231.01,231.0,12.99517012]
[1759823794372,0.81,231.01,231.0,43.05517012]
[1759823795751,0.1,231.01,231.0,43.05517012]
[1759823796746,0.1,231.01,231.0,47.38417444]
[1759823799238,0.1,231.01,231.0,17.32417444]
[1759823799438,0.1,231.01,231.0,47.38417444]
[1759823803772,0.1,231.01,231.0,43.05517012]
[1759823805454,0.1,231.01,231.0,47.38417444]
[1759823805645,0.1,231.01,231.0,48.05417444]
[1759823806055,0.1,231.01,231.0,47.38417444]
[1759823807070,0.1,231.01,231.0,17.32417444]
[1759823807271,0.1,231.01,231.0,48.05417444]
[1759823809051,0.1,231.01,231.0,47.38417444]
[1759823810678,0.1,231.01,231.0,17.32417444]
[1759823810885,0.1,231.01,231.0,47.38417444]
[1759823811086,0.1,231.01,231.0,48.05417444]
[1759823811765,0.1,231.01,231.0,47.38417444]
[1759823815481,0.1,231.01,231.0,17.99417444]
[1759823815983,0.1,231.01,231.0,48.05417444]
[1759823816680,0.1,231.01,231.0,47.38417444]
[1759823820267,0.76,231.01,231.0,47.38417444]
[1759823820607,0.76,231.01,231.0,12.99517012]
[1759823820888,0.76,231.01,231.0,30.06]
[1759823821791,0.76,231.01,231.0,34.38862251]
[1759823825094,0.76,231.01,231.0,4.32862251]
[1759823825280,0.76,231.01,231.0,34.38862251]
[1759823829803,0.76,231.01,231.0,34.36862251]
[1759823835620,0.1,231.01,231.0,34.36862251]
[1759823835999,0.81,231.01,231.0,34.36862251]
[1759823839327,0.1,231.01,231.0,34.36862251]
[1759823840023,0.81,231.01,231.0,34.36862251]
[1759823842745,0.81,231.01,231.0,4.32862251]
[1759823842957,6.86474326,231.01,230.92,6.47785789]
[1759823843156,1.72592633,230.99,230.95,10.91895722]
[1759823843312,1.72592633,230.99,230.92,10.80835284]
[1759823843513,0.71,230.98,230.93,30.04]
[1759823843817,0.71,230.97,230.93,30.04]
[1759823844030,0.71,230.96,230.94,30.04]
[1759823844338,4.32953116,230.98,230.94,30.04]
[1759823844523,0.71,230.95,230.94,30.04]
[1759823844723,6.05545749,230.98,230.94,30.04]
[1759823845039,0.71,230.96,230.95,30.04]
[1759823846317,5.03975406,230.96,230.95,30.04]
[1759823849447,5.03975406,230.96,230.92,5.81785789]
[1759823849448,7.73859618,230.96,230.92,5.81785789]
[1759823849642,3.40884212,230.95,230.92,5.81785789]
[1759823849945,3.40884212,230.95,230.92,35.85785789]
[1759823850130,0.71,230.94,230.92,35.85785789]
[1759823850322,2.69884212,230.95,230.92,35.85785789]
[1759823850323,0.71,230.93,230.92,35.85785789]
[1759823853513,5.04031654,230.93,230.92,35.85785789]
[1759823853941,5.04031654,230.93,230.92,5.81785789]
[1759823856450,7.73915866,230.93,230.92,5.81785789]
[1759823860456,5.04031654,230.93,230.92,5.81785789]
[1759823860753,7.73915866,230.93,230.92,5.81785789]
[1759823864558,5.04031654,230.93,230.92,5.81785789]
[1759823864754,7.73915866,230.93,230.92,5.81785789]
[1759823865867,20.8,230.97,230.92,6.52785789]
[1759823866035,20.8,230.97,230.93,0.71]
[1759823866239,0.7,230.98,230.93,0.71]
[1759823866557,0.7,230.97,230.93,0.71]
[1759823867338,4.32975406,230.96,230.93,0.71]
[1759823868949,0.7,230.97,230.93,0.71]
[1759823869965,4.32975406,230.96,230.94,0.71]
[1759823870350,4.32975406,230.96,230.92,35.85785789]
[1759823870552,4.32975406,230.96,230.93,0.71]
[1759823871343,4.32937916,230.98,230.93,0.71]
[1759823871543,5.02937916,230.98,230.93,0.71]
[1759823872453,4.32937916,230.98,230.93,0.71]
[1759823872764,4.32937916,230.98,230.92,35.85785789]
[1759823872765,4.32937916,230.98,230.94,0.71]
[1759823872972,5.02937916,230.98,230.94,30.75]
[1759823874166,0.1,231.01,230.95,0.71]
[1759823874495,0.1,231.01,230.95,34.50854849]
[1759823874669,0.1,231.01,230.96,0.71]
[1759823875667,0.1,231.01,230.97,15.15348313]
[1759823875961,0.1,231.01,230.98,30.75]
[1759823876345,0.1,231.01,230.99,0.71]